bitfinex/quotes_SOLUSD_20260113
["timestamp","ask_amount","ask_price","bid_price","bid_amount"]
[1768271746654,5.38934553,138.72,138.7,7.78451376]
[1768271746852,0.69930598,138.73,138.7,7.78451376]
[1768271747034,5.38934553,138.72,138.7,7.78451376]
[1768271747234,0.69930598,138.73,138.7,7.78451376]
[1768271747440,5.39032429,138.72,138.7,7.78451376]
[1768271747640,0.69930598,138.73,138.7,7.78451376]
[1768271747841,6.05214809,138.72,138.7,7.78451376]
[1768271748043,0.6618238,138.72,138.7,7.78451376]
[1768271758263,0.6618238,138.72,138.7,7.20951363]
[1768271764670,0.6618238,138.72,138.7,7.78451376]
[1768271767881,9.5992731,138.75,138.71,0.57500013]
[1768271768055,5.39042609,138.74,138.71,0.57500013]
[1768271768382,13.16,138.76,138.72,1.71142838]
[1768271768383,4.81542596,138.73,138.72,1.71142838]
[1768271768563,0.68048782,138.75,138.72,1.71142838]
[1768271768763,0.68048782,138.75,138.72,1.65786494]
[1768271771048,0.68048782,138.75,138.72,0.93286494]
[1768271771280,0.68048782,138.75,138.71,8.92063308]
[1768271772273,0.68048782,138.74,138.7,8.92112642]
[1768271772575,0.68048782,138.74,138.7,7.90264183]
[1768271775767,0.68048782,138.74,138.68,7.87065443]
[1768271775768,0.68884574,138.72,138.68,7.87065443]
[1768271776270,0.68884574,138.72,138.68,9.58208281]
[1768271778169,0.68884574,138.72,138.69,0.65986048]
[1768271779189,0.68884574,138.72,138.69,2.37128886]
[1768271779394,0.68884574,138.72,138.69,9.58133125]
[1768271780282,0.68884574,138.73,138.7,2.37128886]
[1768271780483,0.68884574,138.73,138.71,0.65986048]
[1768271781496,0.68884574,138.73,138.69,0.65986048]
[1768271782076,0.68884574,138.73,138.69,7.86981541]
[1768271782305,0.68884574,138.73,138.69,9.58124379]
[1768271785695,5.39364392,138.72,138.69,9.58124379]
[1768271785887,0.68884574,138.72,138.69,9.58124379]
[1768271789403,0.68884574,138.71,138.68,7.21072636]
[1768271796104,0.68884574,138.71,138.67,9.58253088]
[1768271796306,0.69389714,138.7,138.66,2.39977593]
[1768271796906,0.69389714,138.7,138.66,9.61135485]
[1768271797303,0.69389714,138.7,138.66,7.89992647]
[1768271797732,0.69389714,138.69,138.66,7.89992647]
[1768271810127,0.69389714,138.69,138.66,0.68834755]
[1768271810417,2.40532552,138.69,138.66,0.68834755]
[1768271811223,0.69389714,138.68,138.66,0.68834755]
[1768271811415,8.92132866,138.7,138.66,7.90011092]
[1768271811617,0.69389714,138.69,138.66,7.90011092]
[1768271813630,0.69389714,138.69,138.66,0.68834755]
[1768271814316,0.69389714,138.68,138.65,7.90058366]
[1768271814821,0.69389714,138.68,138.66,0.68834755]
[1768271815527,0.69389714,138.68,138.66,7.90022561]
[1768271815725,2.40532552,138.69,138.66,7.90022561]
[1768271816230,0.69389714,138.69,138.66,7.90022561]
[1768271816417,0.69389714,138.69,138.65,7.90075288]
[1768271817106,2.40532552,138.69,138.65,7.90075288]
[1768271817530,0.69389714,138.68,138.65,7.90075288]
[1768271817729,2.40532552,138.69,138.66,7.90013801]
[1768271819124,0.69389714,138.69,138.66,7.90013801]
[1768271833150,0.69389714,138.69,138.63,31.19293145]
[1768271833151,0.66475931,138.66,138.61,0.68253556]
[1768271833325,0.66475931,138.64,138.61,7.89670021]
[1768271840350,0.60475931,138.64,138.61,7.89670021]
[1768271844355,0.67256841,138.63,138.6,0.6726191]
[1768271845041,0.57256841,138.6,138.54,0.1]
[1768271845352,0.57256841,138.6,138.54,4.33380641]
[1768271845353,9.35602645,138.58,138.54,4.33380641]
[1768271845541,6.95094342,138.58,138.54,0.6726191]
[1768271846152,9.62685917,138.58,138.54,0.6726191]
[1768271846551,5.2301107,138.57,138.55,0.6726191]
[1768271846749,5.2301107,138.57,138.55,13.8326191]
[1768271847251,5.2301107,138.57,138.54,13.8326191]
[1768271847440,7.88759632,138.6,138.56,3.34853485]
[1768271847753,0.67256841,138.59,138.56,0.6726191]
[1768271848326,3.34848416,138.59,138.56,0.6726191]
[1768271848532,14.56883947,138.58,138.55,13.8326191]
[1768271849548,14.56883947,138.58,138.55,16.50853485]
[1768271849947,14.56883947,138.58,138.55,13.8326191]
[1768271851051,17.24475522,138.58,138.55,13.8326191]
[1768271851556,14.56883947,138.58,138.55,13.8326191]
[1768271852534,2.67591575,138.57,138.52,0.1]
[1768271852746,0.67256841,138.57,138.52,3.06023889]
[1768271853861,7.21709006,138.56,138.52,3.06023889]
[1768271854558,7.21709006,138.56,138.53,0.50481249]
[1768271860561,0.70603588,138.56,138.53,0.50481249]
[1768271860859,0.67603587,138.55,138.52,0.60481249]
[1768271861035,0.61603587,138.55,138.52,0.60481249]
[1768271862033,27.93390809,138.57,138.52,3.28072824]
[1768271862253,2.67591575,138.59,138.55,0.5948125]
[1768271862455,7.21604849,138.58,138.55,0.5948125]
[1768271863365,7.92208437,138.58,138.55,0.5948125]
[1768271864363,7.21604849,138.58,138.55,0.5948125]
[1768271866644,7.21604849,138.58,138.55,3.27072825]
[1768271869259,0.70603588,138.58,138.55,3.27072825]
[1768271870652,0.70603588,138.58,138.55,0.5948125]
[1768271870653,7.92214476,138.58,138.55,0.5948125]
[1768271870854,0.70603588,138.6,138.56,2.67591575]
[1768271872561,7.9211066,138.6,138.56,2.67591575]
[1768271875967,0.70603588,138.59,138.56,2.67591575]
[1768271876270,0.70603588,138.59,138.56,13.16]
[1768271876770,0.70603588,138.58,138.53,7.21819915]
[1768271876952,0.70603588,138.58,138.54,15.83591575]
[1768271880310,0.70603588,138.58,138.53,7.21819915]
[1768271880311,0.70603588,138.56,138.53,7.21819915]
[1768271880483,0.64603717,138.56,138.53,9.95411361]
[1768271880663,0.54446619,138.56,138.53,9.95411361]
[1768271882581,0.54446619,138.56,138.53,0.05999871]
[1768271883165,0.54446619,138.56,138.53,2.67591575]
[1768271884086,0.54446619,138.56,138.53,0.16156969]
[1768271886783,0.54446619,138.56,138.53,7.38021089]
[1768271886989,0.54446619,138.56,138.53,10.05612664]
[1768271887291,0.54446619,138.56,138.53,9.09565365]
[1768271888785,0.54446619,138.56,138.53,7.2186412]
[1768271892166,0.54446619,138.56,138.53,8.93408396]
[1768271894575,0.54446619,138.56,138.53,9.09565365]
[1768271900878,0.54446619,138.56,138.53,7.38021089]
[1768271901199,0.54446619,138.56,138.53,7.2186412]
[1768271902301,0.54446619,138.56,138.53,7.38021089]
[1768271907102,0.54446619,138.56,138.53,7.2186412]
[1768271910785,8.93188998,138.58,138.54,7.37969287]
[1768271910786,0.69903443,138.57,138.54,7.37969287]
[1768271916284,0.69903443,138.57,138.52,18.14731657]
[1768271916485,0.69903443,138.57,138.53,1.87701245]
[1768271917610,0.69903443,138.57,138.54,9.09514439]
[1768271918499,0.69903443,138.57,138.54,8.9335747]
[1768271920083,0.69903443,138.57,138.54,7.21813194]
[1768271921594,0.69903443,138.57,138.54,7.37970163]
[1768271921913,0.69903443,138.57,138.54,0.16156969]
[1768271922990,0.69903443,138.57,138.54,7.37953586]
[1768271923508,0.69903443,138.57,138.54,7.21796617]
[1768271930906,0.69903443,138.57,138.54,7.37953586]
[1768271931106,0.69903443,138.57,138.54,7.21796617]
[1768271933316,0.69903443,138.57,138.54,9.09497862]
[1768271933821,0.69903443,138.57,138.54,7.37953586]
[1768271934221,0.69903443,138.57,138.54,7.21796617]
[1768271934903,0.67260117,138.55,138.54,7.21796617]
[1768271935110,0.67260117,138.56,138.54,7.21796617]
[1768271938194,0.67260117,138.58,138.54,7.37953586]
[1768271938400,5.38998155,138.57,138.55,7.37913363]
[1768271938605,0.67260117,138.58,138.55,0.16156969]
[1768271938813,5.3902678,138.57,138.55,0.16156969]
[1768271939118,0.67260117,138.58,138.55,0.16156969]
[1768271939419,5.39026648,138.57,138.55,0.16156969]
[1768271939734,0.67260117,138.58,138.55,0.16156969]
[1768271940030,5.3901688,138.57,138.54,9.09493385]
[1768271940233,0.67260117,138.57,138.54,9.09493385]
[1768271941137,0.67260117,138.57,138.55,1.71544276]
[1768271944601,0.67260117,138.57,138.54,9.09493385]
[1768271946924,0.67260117,138.57,138.54,8.93336416]
[1768271947334,0.67260117,138.57,138.54,7.2179214]
[1768271951426,3.25280283,138.55,138.47,0.13137859]
[1768271951633,3.25280283,138.55,138.45,19.13818278]
[1768271951634,8.37222866,138.49,138.45,19.13818278]
[1768271951814,13.18,138.53,138.47,2.68020166]
[1768271952006,5.38623778,138.52,138.45,19.13818278]
[1768271952209,5.38623778,138.51,138.47,2.68020166]
[1768271952421,2.68020166,138.53,138.47,2.68020166]
[1768271952627,0.14216157,138.54,138.46,2.68020166]
[1768271952628,0.65884601,138.51,138.46,2.68020166]
[1768271952813,0.65884601,138.49,138.46,2.68020166]
[1768271953216,0.65884601,138.49,138.45,19.13818278]
[1768271953538,0.65884601,138.49,138.47,2.68020166]
[1768271955518,0.66326861,138.51,138.48,2.68020166]
[1768271955712,6.03272329,138.5,138.48,2.68020166]
[1768271955912,0.66326861,138.5,138.48,2.68020166]
[1768271956844,0.66326861,138.5,138.46,7.22213606]
[1768271957414,0.66326861,138.5,138.47,2.68020166]
[1768271958138,0.66326861,138.5,138.45,26.36083995]
[1768271958324,0.66326861,138.49,138.45,32.31818278]
[1768271958522,0.66326861,138.49,138.46,2.68020166]
[1768271959336,0.66326861,138.49,138.45,32.31818278]
[1768271959509,0.66326861,138.49,138.45,39.54090072]
[1768271959711,0.66326861,138.49,138.45,42.22110238]
[1768271959932,0.66326861,138.49,138.46,2.68020166]
[1768271961316,0.66326861,138.49,138.46,7.22225413]
[1768271961512,0.66326861,138.49,138.46,9.90245579]
[1768271961709,0.66326861,138.5,138.47,2.68020166]
[1768271962331,0.66326861,138.5,138.46,7.22225413]
[1768271962522,0.66326861,138.5,138.47,2.68020166]
[1768271964340,0.66326861,138.5,138.48,13.18]
[1768271966616,0.66326861,138.5,138.46,9.90234113]
[1768271966817,0.66326861,138.5,138.47,13.18]
[1768271967939,0.66326861,138.5,138.47,15.86020166]
[1768271970039,0.66326861,138.5,138.47,13.18]
[1768271970232,0.66326861,138.5,138.47,15.86020166]
[1768271971128,0.66326861,138.5,138.48,2.68020166]
[1768271972020,0.66326861,138.5,138.47,23.08182343]
[1768271972220,0.66326861,138.5,138.47,20.40162177]
[1768271972443,0.66326861,138.5,138.47,23.08182343]
[1768271973044,0.66326861,138.5,138.47,20.40162177]
[1768271973341,0.66326861,138.5,138.47,23.08182343]
[1768271973943,0.66326861,138.5,138.47,13.18]
[1768271974118,0.66326861,138.5,138.46,7.22227383]
[1768271974325,0.66326861,138.5,138.47,13.18]
[1768271978355,0.66326861,138.5,138.47,15.86020166]
[1768271979032,7.93771777,138.51,138.47,15.86020166]
[1768271979337,0.71777218,138.5,138.47,15.86020166]
[1768271979647,0.71777218,138.51,138.48,2.68020166]
[1768271980240,0.71777218,138.51,138.49,2.68020166]
[1768271980638,0.71777218,138.51,138.48,9.9014069]
[1768271981751,0.71777218,138.51,138.48,7.22120524]
[1768271981957,0.71777218,138.51,138.48,9.9014069]
[1768271986844,0.71777218,138.51,138.48,7.22120524]
[1768271988345,5.36031914,138.5,138.48,9.9014069]
[1768271988545,0.71777218,138.51,138.48,9.9014069]
[1768271988860,5.36032047,138.5,138.48,9.9014069]
[1768271989067,0.71777218,138.51,138.48,9.9014069]
[1768271989282,5.36247649,138.5,138.48,9.9014069]
[1768271989482,0.71777218,138.51,138.48,9.9014069]
[1768271989656,5.36247781,138.5,138.48,9.9014069]
[1768271989854,0.71777218,138.52,138.49,2.68020166]
[1768271991273,0.71777218,138.51,138.48,7.22120524]
[1768271991472,5.36690743,138.5,138.48,20.40120524]
[1768271991650,0.71777218,138.51,138.48,20.40120524]
[1768271992378,5.36982853,138.5,138.48,20.40120524]
[1768271992680,0.71777218,138.51,138.48,20.40120524]
[1768271992870,5.36982986,138.5,138.48,20.40120524]
[1768271993074,0.71777218,138.51,138.48,20.40120524]
[1768271993258,5.36982986,138.5,138.48,20.40120524]
[1768271993457,0.71777218,138.51,138.48,20.40120524]
[1768271993768,5.3724514,138.5,138.48,20.40120524]
[1768271993960,0.71777218,138.51,138.48,20.40120524]
[1768271994155,5.3724514,138.5,138.48,23.0814069]
[1768271994483,0.71777218,138.51,138.48,15.86020166]
[1768271994663,5.37557672,138.5,138.48,15.86020166]
[1768271994864,0.71777218,138.51,138.48,15.86020166]
[1768271995066,5.37557672,138.5,138.48,15.86020166]
[1768271995265,5.37946608,138.49,138.48,15.86020166]
[1768271998294,5.3194661,138.49,138.48,15.86020166]
[1768271998961,0.71777218,138.5,138.48,15.86020166]
[1768272000674,0.71777218,138.5,138.48,23.08121778]
[1768272001370,0.71777218,138.52,138.48,23.08121778]
[1768272002492,0.71777218,138.52,138.49,2.68020166]
[1768272003768,0.71777218,138.52,138.48,23.08121778]
[1768272005497,0.71777218,138.52,138.49,2.68020166]
[1768272009511,0.71777218,138.52,138.49,1.71658355]
[1768272010389,6.06728807,138.51,138.49,1.71658355]
[1768272010582,0.68259932,138.51,138.49,1.71658355]
[1768272017583,0.68259932,138.51,138.48,22.11759967]
[1768272017912,0.68259932,138.51,138.48,8.93759967]
[1768272018102,0.68259932,138.51,138.48,22.11759967]
[1768272019604,0.68259932,138.51,138.48,20.40101612]
[1768272019784,0.68259932,138.51,138.48,22.11759967]
[1768272020409,5.38587821,138.5,138.48,22.11759967]
[1768272020612,0.68259932,138.51,138.48,22.11759967]
[1768272020793,5.38637427,138.5,138.48,22.11759967]
[1768272020994,0.68259932,138.51,138.48,22.11759967]
[1768272021196,5.38708835,138.5,138.48,22.11759967]
[1768272021494,0.68259932,138.51,138.48,22.11759967]
[1768272021694,5.38752213,138.5,138.48,22.11759967]
[1768272021896,0.68259932,138.51,138.48,22.11759967]
[1768272022201,5.38752213,138.5,138.48,22.11759967]
[1768272022400,0.68259932,138.51,138.48,22.11759967]
[1768272022601,5.38992679,138.5,138.48,22.11759967]
[1768272022807,0.68259932,138.51,138.48,22.11759967]
[1768272023112,5.38999777,138.5,138.48,22.11759967]
[1768272023311,0.68259932,138.51,138.48,22.11759967]
[1768272023514,5.3905472,138.5,138.48,22.11759967]
[1768272023692,0.68259932,138.51,138.48,22.11759967]
[1768272023894,5.39054587,138.5,138.48,22.11759967]
[1768272024093,0.68259932,138.51,138.48,22.11759967]
[1768272024294,5.39060799,138.5,138.48,22.11759967]
[1768272024517,0.68259932,138.51,138.48,22.11759967]
[1768272024692,5.3908889,138.5,138.48,22.11759967]
[1768272024888,0.68259932,138.51,138.48,22.11759967]
[1768272025094,5.39234213,138.5,138.48,22.11759967]
[1768272025312,0.68259932,138.51,138.48,22.11759967]
[1768272025498,5.39185817,138.5,138.48,22.11759967]
[1768272025700,0.68259932,138.51,138.48,22.11759967]
[1768272025914,5.39207397,138.5,138.48,22.11759967]
[1768272026115,0.68259932,138.51,138.48,22.11759967]
[1768272026301,5.39191732,138.5,138.48,22.11759967]
[1768272026504,0.68259932,138.51,138.48,22.11759967]
[1768272026693,5.3920404,138.5,138.49,1.71658355]
[1768272027117,0.68259932,138.51,138.49,1.71658355]
[1768272028618,0.68259932,138.51,138.48,20.40101612]
[1768272028819,0.68259932,138.51,138.49,1.71658355]
[1768272035118,0.68259932,138.51,138.49,8.93729171]
[1768272036825,0.68259932,138.51,138.49,7.22070816]
[1768272037120,0.68259932,138.51,138.49,8.93729171]
[1768272040128,0.68259932,138.51,138.49,7.22070816]
[1768272047035,7.21907233,138.53,138.49,7.22070816]
[1768272047036,0.69616239,138.53,138.5,1.71658355]
[1768272047211,0.69616239,138.53,138.51,1.71658355]
[1768272049839,0.69616239,138.53,138.52,1.71658355]
[1768272050042,0.69616239,138.55,138.52,1.71658355]
[1768272054448,0.69616239,138.55,138.52,8.93575401]
[1768272056242,8.93335684,138.57,138.52,9.6319164]
[1768272056548,5.38204895,138.56,138.52,9.6319164]
[1768272056735,8.93335684,138.57,138.52,9.6319164]
[1768272057047,5.38176074,138.56,138.52,9.6319164]
[1768272057251,8.93335684,138.57,138.52,9.6319164]
[1768272057431,5.38104118,138.56,138.52,9.6319164]
[1768272057631,8.93335684,138.57,138.52,9.6319164]
[1768272057838,5.38103985,138.56,138.52,9.6319164]
[1768272058041,8.93335684,138.57,138.52,9.6319164]
[1768272058243,0.69616239,138.55,138.52,15.59274594]
[1768272059254,0.69616239,138.55,138.52,13.87616239]
[1768272060550,0.69616239,138.54,138.5,7.91628389]
[1768272060753,0.69616239,138.52,138.48,7.91707358]
[1768272062348,0.69616239,138.51,138.48,9.63365713]
[1768272063339,0.69616239,138.51,138.48,7.91707358]
[1768272064942,0.63616239,138.51,138.48,7.22091119]
[1768272065139,0.63616239,138.51,138.47,7.88747848]
[1768272065740,0.63616239,138.51,138.47,7.22159747]
[1768272066259,1.71658355,138.51,138.47,7.22159747]
[1768272066555,1.71658355,138.52,138.47,9.60406203]
[1768272066938,0.72306341,138.51,138.47,9.60406203]
[1768272068358,0.72306341,138.51,138.47,7.88747848]
[1768272068561,0.72306341,138.51,138.47,9.60406203]
[1768272071364,0.72306341,138.51,138.47,10.57024678]
[1768272071550,0.66306343,138.51,138.47,10.57024678]
[1768272073342,0.66306343,138.51,138.48,7.89820657]
[1768272076365,0.66306343,138.51,138.48,10.58097487]
[1768272078052,0.60306345,138.51,138.48,10.58097487]
[1768272078453,0.60306345,138.51,138.48,9.90371636]
[1768272079370,0.60306345,138.51,138.48,10.58097487]
[1768272081370,0.60306345,138.51,138.48,7.89820657]
[1768272084749,0.54306345,138.51,138.48,7.89820657]
[1768272084952,0.54306345,138.51,138.48,7.86593918]
[1768272087176,0.54306345,138.51,138.48,10.54870748]
[1768272088375,0.54306345,138.51,138.47,7.8990394]
[1768272088576,0.54306345,138.51,138.47,10.5818077]
[1768272088577,0.7003911,138.5,138.47,10.5818077]
[1768272089277,0.7003911,138.5,138.47,23.7618077]
[1768272089480,0.7003911,138.5,138.48,7.89822177]
[1768272091468,0.64039109,138.5,138.48,7.89822177]
[1768272091669,0.64039109,138.5,138.48,7.86822178]
[1768272097889,0.69385499,138.51,138.48,7.86822178]
[1768272098094,0.63385501,138.51,138.48,7.86822178]
[1768272098402,0.63385501,138.51,138.48,7.8382218]
[1768272098909,0.69385499,138.5,138.47,7.22144457]
[1768272099121,0.69385499,138.5,138.47,20.40144457]
[1768272099408,0.69385499,138.48,138.46,7.2222547]
[1768272099889,0.69385499,138.49,138.46,7.2222547]
[1768272100291,0.69385499,138.49,138.46,10.62306888]
[1768272103298,0.69385499,138.49,138.47,2.6827683]
[1768272104775,0.69385499,138.49,138.47,3.40081418]
[1768272108191,0.69385499,138.49,138.47,2.6827683]
[1768272109299,0.69385499,138.49,138.47,3.40081418]
[1768272111200,0.69385499,138.49,138.47,2.6827683]
[1768272111883,0.633855,138.49,138.47,2.6827683]
[1768272116106,0.633855,138.49,138.46,10.62306888]
[1768272117412,0.633855,138.49,138.46,7.94030058]
[1768272117609,0.633855,138.49,138.46,10.62306888]
[1768272117914,0.633855,138.49,138.46,9.905023]
[1768272118211,0.633855,138.49,138.46,10.62306888]
[1768272118683,0.633855,138.49,138.46,9.905023]
[1768272119099,0.633855,138.49,138.46,10.62306888]
[1768272119300,0.633855,138.49,138.46,7.94030058]
[1768272119501,0.633855,138.49,138.46,10.62306888]
[1768272119904,0.633855,138.49,138.46,9.905023]
[1768272120408,0.633855,138.49,138.47,2.6827683]
[1768272121487,0.633855,138.49,138.46,10.62306888]
[1768272121733,0.69385499,138.52,138.49,0.71804588]
[1768272121889,5.38663751,138.51,138.5,2.6827683]
[1768272122399,0.69385499,138.52,138.5,2.6827683]
[1768272123495,0.69385499,138.52,138.49,3.40081418]
[1768272126209,0.69385499,138.52,138.49,10.6215072]
[1768272130209,0.6741293,138.55,138.5,0.6544034]
[1768272130514,0.6741293,138.53,138.5,0.6544034]
[1768272130812,0.6741293,138.53,138.49,9.90346132]
[1768272131001,0.6741293,138.53,138.49,10.55786472]
[1768272131315,0.6741293,138.53,138.49,9.59160274]
[1768272133192,0.6741293,138.52,138.49,2.37090972]
[1768272135000,0.6741293,138.52,138.49,1.71650632]
[1768272135306,0.6741293,138.52,138.48,22.11759922]
[1768272135530,0.6741293,138.52,138.48,22.77405766]
[1768272135708,0.71956299,138.51,138.48,15.55296476]
[1768272136694,0.65956301,138.51,138.48,15.55296476]
[1768272136896,0.65956301,138.51,138.48,15.52296478]
[1768272140218,0.65956301,138.51,138.49,1.71650632]
[1768272141228,0.65956301,138.51,138.48,14.86650634]
[1768272141400,0.65956301,138.51,138.48,1.71650632]
[1768272144424,0.65956301,138.51,138.49,2.37296476]
[1768272145807,0.65956301,138.51,138.49,1.71650632]
[1768272151347,0.65956301,138.51,138.49,2.37296476]
[1768272151738,0.65956301,138.51,138.49,1.71650632]
[1768272152846,0.65956301,138.51,138.47,7.87804131]
[1768272153012,0.65956301,138.51,138.48,0.65645844]
[1768272153219,0.65956301,138.51,138.48,2.37296476]
[1768272154631,0.71410121,138.5,138.47,2.38511211]
[1768272154930,0.71410121,138.5,138.49,1.71650632]
[1768272155434,7.2197373,138.51,138.49,1.71650632]
[1768272155939,7.21865299,138.53,138.49,1.71650632]
[1768272156119,5.38822017,138.52,138.49,1.71650632]
[1768272156325,5.38822017,138.51,138.49,1.71650632]
[1768272156639,7.21865299,138.53,138.49,1.71650632]
[1768272156935,5.38843909,138.52,138.49,1.71650632]
[1768272157136,5.38843909,138.51,138.49,1.71650632]
[1768272157435,0.71410121,138.51,138.48,0.66860579]
[1768272157636,0.71410121,138.51,138.49,1.71650632]
[1768272158337,0.71410121,138.51,138.5,1.71650632]
[1768272158542,6.10322988,138.51,138.5,1.71650632]
[1768272159039,6.10322988,138.51,138.5,1.65650634]
[1768272164046,6.10322988,138.51,138.48,0.66860579]
[1768272164245,0.71410121,138.51,138.5,1.71650632]
[1768272164445,6.10505849,138.51,138.5,1.71650632]
[1768272167443,0.71410121,138.51,138.5,1.71650632]
[1768272167748,6.10509523,138.51,138.5,1.71650632]
[1768272172339,5.39099402,138.51,138.5,1.71650632]
[1768272172528,5.39156475,138.51,138.5,1.71650632]
[1768272173255,7.93352816,138.52,138.5,1.71650632]
[1768272174853,0.45107888,138.51,138.5,1.71650632]
[1768272175149,25.2646287,138.54,138.5,1.71650632]
[1768272177054,7.31817412,138.52,138.5,1.71650632]
[1768272178155,0.099,138.52,138.5,1.71650632]
[1768272180546,7.83678951,138.54,138.51,2.38511211]
[1768272180751,0.099,138.53,138.52,1.71650632]
[1768272182467,0.099,138.53,138.51,1.71650632]
[1768272182671,0.099,138.53,138.52,1.71650632]
[1768272185157,7.21813194,138.54,138.52,1.71650632]
[1768272185375,7.21813194,138.54,138.53,1.71650632]
[1768272185589,7.21813194,138.54,138.53,1.66293357]
[1768272185788,7.21813194,138.54,138.5,2.38511211]
[1768272186085,7.21813194,138.54,138.52,1.71650632]
[1768272187159,5.91302643,138.53,138.52,1.71650632]
[1768272188483,0.51965757,138.53,138.52,1.71650632]
[1768272188657,5.91134459,138.53,138.52,1.71650632]
[1768272188979,7.21813194,138.54,138.52,1.71650632]
[1768272193279,7.21813194,138.54,138.52,2.68146866]
[1768272200268,7.21813194,138.54,138.51,0.67796078]
[1768272200464,7.21813194,138.54,138.51,3.35942944]
[1768272200887,12.60801413,138.53,138.51,3.35942944]
[1768272201075,5.38922947,138.52,138.51,3.35942944]
[1768272201266,7.21878466,138.53,138.51,3.35942944]
[1768272202578,7.21813194,138.54,138.51,3.35942944]
[1768272202780,5.38926579,138.53,138.51,3.35942944]
[1768272203096,7.21813194,138.54,138.51,3.35942944]
[1768272203397,5.38930354,138.53,138.51,3.35942944]
[1768272203701,7.21813194,138.54,138.51,3.35942944]
[1768272203987,12.60806557,138.53,138.51,3.35942944]
[1768272204195,7.21867488,138.53,138.51,3.35942944]
[1768272205389,20.22744558,138.56,138.51,3.35942944]
[1768272205686,5.38944351,138.55,138.51,3.35942944]
[1768272205879,5.38944351,138.54,138.51,3.35942944]
[1768272206188,5.38944351,138.53,138.51,3.35942944]
[1768272206491,9.51761097,138.55,138.52,0.65872291]
[1768272206689,5.38958338,138.54,138.52,0.65872291]
[1768272206868,5.38958338,138.53,138.52,0.65872291]
[1768272207890,7.21851581,138.54,138.52,0.65872291]
[1768272208189,5.38985863,138.53,138.52,0.65872291]
[1768272208389,7.21761097,138.55,138.52,0.65872291]
[1768272208589,5.38933018,138.54,138.52,0.65872291]
[1768272208789,7.21761097,138.55,138.52,0.65872291]
[1768272209089,5.38934124,138.54,138.52,0.65872291]
[1768272209298,7.21761097,138.55,138.52,0.65872291]
[1768272209472,12.60808233,138.54,138.52,2.68146866]
[1768272209788,4.66445576,138.53,138.52,2.68146866]
[1768272210091,7.21862657,138.54,138.52,2.68146866]
[1768272211392,7.21862657,138.54,138.52,3.34019157]
[1768272212892,7.21862657,138.54,138.52,0.65872291]
[1768272213675,0.66595073,138.54,138.51,3.34019157]
[1768272214474,0.66595073,138.54,138.52,0.65872291]
[1768272215292,7.21865299,138.53,138.51,3.39595549]
[1768272215485,7.88059259,138.53,138.51,2.68146866]
[1768272215671,7.21865299,138.53,138.5,2.68146866]
[1768272216081,7.8773759,138.53,138.5,3.39595549]
[1768272216280,7.8773759,138.53,138.5,0.71448683]
[1768272218503,0.099,138.52,138.49,0.71448683]
[1768272221110,0.099,138.52,138.49,3.39595549]
[1768272222308,0.099,138.52,138.49,0.71448683]
[1768272225989,0.099,138.52,138.48,0.71448683]
[1768272226205,0.65312568,138.51,138.48,0.71448683]
[1768272227420,0.65312568,138.51,138.45,42.22231726]
[1768272227421,0.10997223,138.48,138.45,19.85266961]
[1768272227709,0.64226317,138.47,138.45,19.13818278]
[1768272227911,0.58226318,138.47,138.45,19.85266961]
[1768272228101,2.68146866,138.48,138.45,19.85266961]
[1768272229210,9.90317081,138.48,138.45,19.85266961]
[1768272230290,2.68146866,138.47,138.45,19.85266961]
[1768272231611,10.00217081,138.48,138.45,19.85266961]
[1768272232502,7.32070215,138.48,138.45,19.85266961]
[1768272233395,7.32070215,138.48,138.45,22.53413827]
[1768272234286,0.099,138.48,138.45,22.53413827]
[1768272234916,0.099,138.48,138.45,19.85266961]
[1768272235111,0.099,138.48,138.45,22.53413827]
[1768272236200,7.32025938,138.48,138.45,19.85266961]
[1768272236416,7.32025938,138.48,138.45,22.53413827]
[1768272239217,7.32025938,138.48,138.45,19.85266961]
[1768272239614,0.39372569,138.43,138.35,0.71448683]
[1768272239915,0.099,138.36,138.34,1e-08]
[1768272240114,13.18,138.35,138.34,1e-08]
[1768272240622,15.86146866,138.35,138.34,1e-08]
[1768272240808,15.86146866,138.35,138.32,0.71448683]
[1768272241008,2.68146866,138.34,138.32,0.71448683]
[1768272241324,2.68146866,138.34,138.28,2.68146866]
[1768272241325,2.68146866,138.33,138.28,2.68146866]
[1768272241502,9.91072777,138.33,138.28,2.68146866]
[1768272242025,15.86146866,138.32,138.27,9.91329986]
[1768272242316,13.18,138.32,138.28,2.68146866]
[1768272242627,16.30545813,138.32,138.27,9.91329986]
[1768272242929,13.62398947,138.32,138.28,9.91305551]
[1768272243101,0.6619396,138.35,138.29,2.68146866]
[1768272243300,15.86146866,138.34,138.3,0.71448683]
[1768272243501,16.30327885,138.34,138.3,0.71448683]
[1768272243903,16.30327885,138.34,138.3,7.94503618]
[1768272244602,13.62181019,138.34,138.3,7.94503618]
[1768272244803,13.62181019,138.34,138.3,10.62650484]
[1768272245622,13.18,138.33,138.3,10.62650484]
[1768272246010,13.18,138.33,138.3,7.94503618]
[1768272246215,13.18,138.33,138.3,10.62650484]
[1768272246621,13.18,138.33,138.3,0.71448683]
[1768272247899,10.35200818,138.34,138.3,0.71448683]